[Event "3rd Sunway Formentera-A 2024"]
[Site "Formentera"]
[Date "2024.04.18"]
[Round "9.4"]
[White "Alsina Leal, Daniel"]
[Black "Fernandez Guillen, Ernesto J."]
[Result "1-0"]
[ECO "B51"]
[WhiteElo "2497"]
[BlackElo "2474"]
[Annotator "TA"]
[PlyCount "113"]
[EventDate "2024.04.03"]
[EventType "swiss"]
[EventCountry "ESP"]
[SourceTitle "playchess.com"]
[Source "ChessBase"]
[SourceQuality "1"]
[TimeControl "40/5400+30:1800+30"]

{[%evp 9,113,0,0,0,9,9,20,6,20,0,36,42,62,72,67,72,118,143,141,139,150,135,158,114,110,86,106,85,91,60,56,73,85,86,80,77,111,118,116,120,124,124,154,159,150,162,148,146,175,0,119,0,177,172,191,185,200,187,226,229,243,253,278,230,441,256,682,237,274,266,329,181,191,169,264,0,194,0,202,181,300,240,248,245,267,266,593,618,614,614,603,587,585,549,1062,975,1183,1108,1256,1188,1282,1160,1143,925,947,937]} 1. e4 {[%emt 0:01:33]} c5 {[%emt 0:06:57]} 2. Nf3 {[%emt 0:00:12]} d6 {[%emt 0:00:34]} 3. Bb5+ {[%emt 0:00:12]} Nd7 {[%emt 0:02:23]} 4. d4 {[%emt 0:04:27]} cxd4 {[%emt 0:00:30]} 5. Nxd4 {[%emt 0:00:05]} Ngf6 {[%emt 0:00:43]} 6. O-O {[%emt 0:00:37]} a6 {[%emt 0:01:00]} 7. Bd3 {[%emt 0:00:37]} Nc5 {[%emt 0:00:44]} 8. Nc3 {[%emt 0:06:19] The position is equal.} e5 {[%emt 0:04:08]} 9. Nf5 {[%emt 0:03:09]} Bxf5 {[%emt 0:02:14]} 10. exf5 {[%emt 0:00:21]} d5 {[%emt 0:03:13][%cal Bd6d5,Bd5d4][%mdl 32]} 11. Bg5 {[%emt 0:12:59]} d4 {[%emt 0:14:55]} 12. Ne4 {[%emt 0:02:32]} h5 {[%emt 0:03:06]} ({Black should try} 12... Nxd3 13. Qxd3 (13. cxd3 Be7 $16) 13... Qb6) 13. Re1 $16 {[%emt 0:14:51]} Ncxe4 {[%emt 0:04:28]} 14. Bxe4 {[%emt 0:03:42]} Qb6 {[%emt 0:03:51] [#]} 15. Bf3 {[%emt 0:19:57]} Bd6 {[%emt 0:03:18]} 16. Bxf6 {[%emt 0:05:38]} gxf6 {[%emt 0:01:51]} 17. Qe2 {[%emt 0:00:22]} Bc5 {[%emt 0:09:55]} 18. Rad1 {[%emt 0:03:04]} Rd8 {[%emt 0:07:46]} 19. Rd3 {[%emt 0:02:45] Black must now prevent Rb3.} (19. h4 {simplifies} Kf8 20. Rb1 Qb5 21. Qxb5 axb5 22. Bxb7 b4 23. g3) 19... Qxb2 {[%emt 0:01:21]} 20. Rb3 {[%emt 0:03:49]} (20. Bxh5 Qxa2 21. f4 Bd6 $11 (21... Bb4 22. fxe5 Bxe1 23. exf6+ Kd7 24. Rb3 $11)) 20... d3 {[%emt 0:08:42] [#] ...Qxb3 is the strong threat.} 21. Rxb2 {[%emt 0:00:30]} dxe2 {[%emt 0:00:03]} 22. Rxb7 {[%emt 0:01:26][%cal Oh2h4]} h4 {[%emt 0:00:38]} 23. Bxe2 {[%emt 0:03:47]} (23. Rxe2 $2 Rd1+) 23... O-O {[%emt 0:01:31]} 24. Rc7 {[%emt 0:00:55] White is more active.} (24. Bxa6 Rd2 25. Be2 Rxc2 $15) 24... Bb6 {[%emt 0:01:01]} 25. Rc4 {[%emt 0:03:14]} Rd2 {[%emt 0:03:00]} 26. Rg4+ {[%emt 0:00:07]} (26. Rxh4 Rc8 $11) 26... Kh7 {[%emt 0:00:01]} 27. Rxh4+ {[%emt 0:00:06]} (27. Bxa6 $2 Bxf2+ (27... Rxf2 28. Rxh4+ Kg7 29. Rg4+ Kh6 30. Kh1 $11) 28. Kf1 Bxe1 (28... Rxc2 29. Re2 $16) 29. Kxe1 Rxc2 30. Rxh4+ Kg7 31. Rg4+ Kh6 $19) 27... Kg7 {[%emt 0:00:03]} 28. Rg4+ {[%emt 0:00:15]} (28. Bxa6 $2 Bxf2+ (28... Rxf2 29. Rg4+ Kh6 30. h3 $11) 29. Kf1 Bxh4 $19) 28... Kh7 {[%emt 0:00:01]} 29. Rh4+ {[%emt 0:00:36]} (29. Bxa6 $2 Bxf2+ (29... Rxf2 30. Kh1 $11) 30. Kf1 Bxe1 (30... Rxc2 31. Re2 $16) 31. Kxe1 Rxc2 $19) (29. Rc4 $18) 29... Kg7 {[%emt 0:00:03]} 30. Rg4+ {[%emt 0:00:13]} (30. Bxa6 $2 Bxf2+ (30... Rxf2 31. Kh1 $11) 31. Kf1 Bxh4 $19) (30. Rc4 $16) 30... Kh7 $1 $18 {[%emt 0:00:38]} 31. Rc4 {[%emt 0:00:35]} (31. Bxa6 $2 Bxf2+ (31... Rxf2 32. Kh1 $11) 32. Kf1 Bxe1 $19 (32... Rxc2 33. Re2 $16)) 31... Rfd8 {[%emt 0:02:42][%cal Od2e2] Strongly threatening ...Rxe2!} 32. Kf1 {[%emt 0:00:55]} R8d4 {[%emt 0:02:02] Threatens to win with ...Rxc4.} 33. Rc6 {[%emt 0:02:10][%csl LRa6,LRb6,LRf6]} Ba5 {[%emt 0:01:39][%cal Od2e2]} 34. g3 {[%emt 0:00:38]} (34. Rxa6 Rxe2 35. Rxa5 (35. Kxe2 Re4+ 36. Kf3 Rf4+ 37. Ke2 Re4+ 38. Kf3 Rf4+ 39. Ke2 Re4+ $11) 35... Rxc2 $16) 34... e4 {[%emt 0:04:19]} 35. Rb1 {[%emt 0:01:24]} (35. Rxf6 Kg7 36. Rc6 (36. Rxa6 Bc3 $18) 36... Rd6 37. Rxd6 (37. Rxa6 Rxa6 38. Bxa6 Rd6 $18) 37... Rxd6 $18) 35... Kg7 {[%emt 0:01:00]} 36. Rb7 {[%emt 0:01:01]} Rd5 $2 {[%emt 0:04:26]} (36... Rb4 {is a better defense.} 37. Rxb4 (37. Bxa6 Rd1+ 38. Kg2 Rxb7 $18) 37... Bxb4 38. Bxa6 (38. Rxa6 Rxc2 39. Ra4 Rc1+ 40. Kg2 Rc2 $16) 38... e3) 37. g4 {[%emt 0:01:01]} (37. Bxa6 e3 38. fxe3 Rxf5+ 39. Kg1 Rd1+ 40. Kg2 Rd2+ 41. Kh3 Rh5+ 42. Kg4 Rg5+ 43. Kf4 Rxh2 $16) (37. Rxa6 $142 {Raa7 would now be deadly.} Bd8 38. Raa7) 37... Re5 $2 {[%emt 0:00:21]} (37... Rd7 38. Rxd7 (38. Bxa6 Rxb7 39. Bxb7 Rd1+ 40. Kg2 Rd2 $18) 38... Rxd7 39. Rxa6 Bd2) 38. Rb3 $2 {[%emt 0:02:48]} (38. Bxa6 e3 39. fxe3 Rxe3 $11) (38. Bc4 Kf8 39. Rxa6 (39. Bxa6 e3 $18) (39. Rxf7+ Ke8 $18)) 38... Bd8 {[%emt 0:01:03]} 39. h4 {[%emt 0:00:24]} (39. Rxa6 $6 Rxc2 40. Ra8 Rd5 $18) 39... Be7 {[%emt 0:00:41]} 40. Rbc3 {[%emt 0:00:00] Inhibits Rc5.} (40. Bxa6 Rc5 41. Rc3 (41. Rxc5 Bxc5 42. Rc3 Rxf2+ 43. Ke1 Bb6 $18) 41... Ra5) (40. Rb8 $142 {[%cal Oc6c8] Hoping for Rcc8!} Bd6 41. Rd8) 40... Bb4 {[%emt 0:00:00]} 41. R3c4 {[%emt 0:06:39]} Bf8 {[%emt 0:02:51]} (41... e3 $142 42. f4 (42. Rxb4 exf2 43. Kxf2 Rexe2+ 44. Kf3 Rf2+ 45. Ke4 Rfe2+ 46. Kf3 Rh2 $11) 42... Rb5) 42. Rc3 {[%emt 0:09:16]} (42. Rxa6 e3 43. fxe3 Rxe3 $16) 42... Bb4 $1 {[%emt 0:01:14]} 43. Rb3 $2 {[%emt 0:00:25]} ({White should play} 43. Rh3 $18) 43... a5 $2 {[%emt 0:01:13]} (43... Be7 $1 $11 44. Rc7 (44. Bxa6 Bc5 $18) (44. Rxa6 Rc5 $18) 44... Bd6) 44. Rc7 {[%emt 0:01:16]} Re8 {[%emt 0:07:12]} (44... Rc5 $142 45. Rxc5 Bxc5) 45. a3 {[%emt 0:01:59]} Bd6 {[%emt 0:03:16]} 46. Rd7 {[%emt 0:00:38]} Re7 {[%emt 0:00:55]} 47. Rbb7 {[%emt 0:03:18]} Kf8 $2 {[%emt 0:03:19]} (47... Rxd7 {is a better chance.} 48. Rxd7 Bb4 49. Rxd2 Bxd2) 48. Rd8+ {[%emt 0:01:40] White is clearly winning.} Re8 {[%emt 0:00:01]} 49. Rxe8+ {[%emt 0:00:20]} Kxe8 {[%emt 0:00:03][%mdl 4096] Endgame. KRB-KRB} 50. Bb5+ {[%emt 0:00:34]} Kf8 {[%emt 0:00:02][%cal Od6c5]} 51. Rd7 {[%emt 0:00:24]} Bf4 {[%emt 0:01:29]} 52. Rxd2 {[%emt 0:00:32]} Bxd2 {[%emt 0:00:02]} 53. Ke2 {[%emt 0:00:12]} Bc1 {[%emt 0:00:02]} 54. a4 {[%emt 0:00:06]} Ke7 {[%emt 0:00:04]} 55. Bc6 {[%emt 0:00:41]} Kd6 {[%emt 0:00:02]} 56. Bxe4 {[%emt 0:00:18]} Kc5 {[%emt 0:00:21]} 57. Kd3 {[%emt 0:01:13] Weighted Error Value: White=0.42/Black=0.43.  Loses game:     	---       	Black=1      Missed win:     	White=1     	---        Mistake:       	White=5     	Black=6      Inaccurate:     	White=1     	Black=3      OK:         	White=18    	Black=13     Best:        	White=5     	Black=2      Strong:       	---       	Black=2} 1-0

[Event "3rd Sunway Formentera-A 2024"]
[Site "Formentera"]
[Date "2024.04.18"]
[Round "9.5"]
[White "Xiao, Tong(Qd)"]
[Black "Colbow, Collin"]
[Result "1-0"]
[ECO "B28"]
[WhiteElo "2484"]
[BlackElo "2376"]
[Annotator "TA"]
[PlyCount "71"]
[EventDate "2024.04.03"]
[EventType "swiss"]
[EventCountry "ESP"]
[SourceTitle "playchess.com"]
[Source "ChessBase"]
[SourceQuality "1"]
[TimeControl "40/5400+30:1800+30"]

{[%evp 10,70,37,27,15,18,25,30,27,11,20,3,23,28,14,22,20,12,17,0,0,16,22,0,0,0,14,14,18,6,10,9,2,0,10,6,0,0,12,12,16,0,0,0,0,0,20,0,0,0,98,81,338,354,593,564,5377,4998,5493,5446,29997,29998,29999]} 1. e4 {[%emt 0:00:12]} c5 {[%emt 0:00:05]} 2. Nf3 {[%emt 0:00:11]} a6 {[%emt 0:00:09]} 3. c3 {[%emt 0:00:49]} Nf6 {[%emt 0:00:13]} 4. e5 {[%emt 0:02:41]} Nd5 {[%emt 0:00:13]} 5. d4 {[%emt 0:03:29]} cxd4 {[%emt 0:00:08]} 6. Bc4 {[%emt 0:00:17]} e6 {[%emt 0:00:17]} 7. cxd4 {[%emt 0:06:02]} d6 {[%emt 0:00:37]} 8. O-O {[%emt 0:02:43]} Be7 {[%emt 0:00:17] White has an edge.} 9. Qe2 {[%emt 0:00:34]} O-O {[%emt 0:00:24]} 10. Rd1 {[%emt 0:01:03]} Nd7 {[%emt 0:04:24]} 11. Bxd5 {[%emt 0:09:45]} exd5 {[%emt 0:00:08]} 12. Nc3 {[%emt 0:01:30]} Nb6 {[%emt 0:02:14]} 13. Bf4 {[%emt 0:01:37]} Be6 {[%emt 0:04:29]} 14. Re1 {[%emt 0:01:46]} Re8 {[%emt 0:03:21]} 15. Qd3 {[%emt 0:04:48]} h6 {[%emt 0:13:24]} 16. Re2 {[%emt 0:05:23]} Rc8 {[%emt 0:05:13]} 17. Rae1 {[%emt 0:02:05]} Qc7 {[%emt 0:15:57]} 18. exd6 {[%emt 0:04:43]} Bxd6 {[%emt 0:00:45]} 19. Bxd6 {[%emt 0:00:07]} Qxd6 {[%emt 0:00:06]} 20. Ne5 {[%emt 0:00:11]} Nc4 {[%emt 0:10:51]} 21. f4 {[%emt 0:10:25][%cal Bf2f4,Bf4f5,Bf5f6][%mdl 32]} Qb4 {[%emt 0:04:31]} 22. Nxc4 {[%emt 0:10:36]} dxc4 {[%emt 0:00:41]} (22... Rxc4 $2 {too greedy.} 23. Nxd5 Qb5 24. Re5 $18) 23. Qf3 {[%emt 0:00:13]} Qb6 {[%emt 0:10:36]} 24. Qf2 {[%emt 0:01:32] And now f5 would win.} Qd6 {[%emt 0:08:54]} 25. Ne4 {[%emt 0:01:45]} (25. f5 $5 Bd7 $8 26. Ne4 $11) 25... Qf8 {[%emt 0:05:12]} 26. f5 {[%emt 0:02:30]} Bd5 {[%emt 0:00:09]} 27. Nc3 {[%emt 0:00:13]} Rxe2 {[%emt 0:00:33]} 28. Rxe2 {[%emt 0:00:14]} Qd6 {[%emt 0:02:57]} 29. f6 {[%emt 0:02:14]} (29. Re5 $5 Bc6 $8 30. Qf4 $11) 29... g6 {[%emt 0:01:46]} (29... b5 $11) 30. Qe3 $36 {[%emt 0:05:32][%mdl 2048] Hoping for Nxd5. White is on the roll.} Kh7 $2 {[%emt 0:02:25][%mdl 8192] [#] A mistake that costs the game.} (30... Bc6 $16 {might work better.}) 31. Qe7 $1 $18 {[%emt 0:01:23]} Rc6 {[%emt 0:01:52] Black is weak on the dark squares} (31... Rd8 32. h3 b5) 32. Rf2 {[%emt 0:06:27]} ({Not} 32. Qxb7 Be6 $16) 32... g5 {[%emt 0:02:47]} 33. Nxd5 {[%emt 0:00:32]} Qxd5 {[%emt 0:00:05]} 34. Qf8 {[%emt 0:00:04][%csl Gf6][%cal Rf8g7]} ({Weaker is} 34. Qxb7 Rd6 35. Qe7 Kg6 $11) 34... Kg6 {[%emt 0:00:25]} 35. g4 {[%emt 0:00:07][%cal Rf8g8]} Rxf6 {[%emt 0:00:55]} 36. Qg8# {[%emt 0:00:06] Weighted Error Value: White=0.04 (flawless) /Black=0.52.  Loses game:     	---       	Black=1      Mistake:       	---       	Black=2      Inaccurate:     	---       	Black=1      OK:         	White=10    	Black=9      Best:        	White=1     	Black=1      Strong:       	White=1     	---} 1-0

[Event "3rd Sunway Formentera-A 2024"]
[Site "Formentera"]
[Date "2024.04.18"]
[Round "9.6"]
[White "Mohamed Anees M"]
[Black "Dragnev, Valentin"]
[Result "1-0"]
[ECO "E06"]
[WhiteElo "2253"]
[BlackElo "2571"]
[Annotator "TA"]
[PlyCount "147"]
[EventDate "2024.04.03"]
[EventType "swiss"]
[EventCountry "ESP"]
[SourceTitle "playchess.com"]
[Source "ChessBase"]
[SourceQuality "1"]
[TimeControl "40/5400+30:1800+30"]

{[%evp 11,147,16,29,18,28,19,28,27,39,35,43,23,30,11,10,0,0,0,0,7,12,-17,-13,-8,-16,-13,12,0,17,0,0,0,0,0,0,0,23,-83,-65,-116,-104,-136,-89,-192,-196,-178,-15,-22,11,8,16,0,7,0,-2,-15,0,0,0,0,0,0,210,223,234,0,0,0,214,0,253,246,628,614,617,569,1404,1004,1141,1110,1534,309,336,330,306,320,421,421,425,425,425,425,417,417,403,313,517,475,459,459,851,854,847,835,780,636,634,603,1608,1527,1592,1592,1528,1184,1536,836,2622,1734,5035,2039,2845,5431,11581,1300,2668,2245,2611,1985,2514,2375,29984,29985,29990,5632,29991,29992,29994,29995]} 1. d4 {[%emt 0:00:16]} Nf6 {[%emt 0:00:31]} 2. c4 {[%emt 0:00:05]} e6 {[%emt 0:00:11]} 3. g3 {[%emt 0:00:04]} d5 {[%emt 0:02:09]} 4. Bg2 {[%emt 0:00:08]} Be7 {[%emt 0:00:13]} 5. Nf3 {[%emt 0:00:07]} O-O {[%emt 0:00:07]} 6. O-O {[%emt 0:00:24]} a5 {[%emt 0:00:08]} 7. Qc2 {[%emt 0:04:49]} Nc6 {[%emt 0:00:25]} 8. a3 {[%emt 0:01:44]} dxc4 {[%emt 0:02:53]} 9. Qxc4 {[%emt 0:00:38] White has an edge.} a4 {[%emt 0:00:07]} 10. Nc3 {[%emt 0:01:58]} Bd7 {[%emt 0:01:08]} 11. Qd3 {[%emt 0:03:34]} (11. Nxa4 $2 b5 (11... Nxd4 12. Nc3 $11) 12. Qxb5 Nxd4 $19) 11... Na5 {[%emt 0:07:35]} 12. Ne5 {[%emt 0:04:02]} Be8 {[%emt 0:01:23]} 13. Bf4 {[%emt 0:01:35]} Nd5 {[%emt 0:03:46]} 14. Rad1 {[%emt 0:03:44]} Nxf4 {[%emt 0:04:47]} 15. gxf4 {[%emt 0:00:56]} f6 {[%emt 0:07:37]} 16. Nc4 {[%emt 0:01:48]} Kh8 {[%emt 0:04:30]} 17. Nd2 {[%emt 0:10:49]} Bd6 {[%emt 0:08:05]} 18. e3 {[%emt 0:03:31]} f5 {[%emt 0:00:16]} 19. Ne2 {[%emt 0:04:14]} Rg8 {[%emt 0:54:09]} 20. d5 e5 {[%emt 0:00:00]} 21. fxe5 {[%emt 0:56:34]} Bxe5 {[%emt 0:00:00]} 22. Nd4 {[%emt 0:00:00]} Qf6 {[%emt 0:00:00]} 23. N2f3 {[%emt 0:00:00]} Bh5 {[%emt 0:00:00]} 24. Rc1 {[%emt 0:00:00]} (24. Nxf5 Bxb2 25. Qc2 Nb3 $19 (25... Bxa3 26. Ra1 $17) (25... Bxf3 26. Bxf3 $17)) (24. Qxf5 Qxf5 25. Nxf5 Bxb2 $15) (24. Nxe5 $11 {remains equal.} Bxd1 25. Qxf5 Qxf5 26. Nxf5) 24... Bxf3 $17 {[%emt 0:00:00]} 25. Nxf3 {[%emt 0:00:00]} (25. Bxf3 $15 Qh4 26. Rfe1) 25... Nb3 {[%emt 0:00:00]} 26. Rc4 {[%emt 0:00:00]} Bxb2 {[%emt 0:00:00]} 27. Rxc7 {[%emt 0:00:00]} (27. Nd4 $17) 27... Bxa3 $19 {[%emt 0:00:00]} 28. Qb5 {[%emt 0:00:00]} Bb2 $2 {[%emt 0:00:00]} (28... b6 $19 {Hoping for ...Rgd8.} 29. Rc6 Bd6 30. Rxb6 Rgd8) 29. Rc2 $1 $11 {[%emt 0:00:00]} Bc3 {[%emt 0:00:00]} 30. Rd1 {[%emt 0:00:00][%cal Od5d6]} g5 {[%emt 0:00:00]} 31. Qxb7 {[%emt 0:00:00]} (31. d6 $5) 31... Rgb8 {[%emt 0:00:00]} 32. Qc7 {[%emt 0:00:00]} Rc8 {[%emt 0:00:10]} 33. Qb7 {[%emt 0:00:00]} Rcb8 {[%emt 0:01:00]} 34. Qc7 {[%emt 0:00:00]} Rc8 {[%emt 0:01:28]} 35. Qb7 {[%emt 0:00:00] aiming for d6.} Rab8 {[%emt 0:01:43]} 36. Qa7 {[%emt 0:00:28]} Nc5 $2 {[%emt 0:00:19]} (36... g4 $2 37. Ng5 Qxg5 38. Rxc3 $18 (38. Qxa4 $2 f4 $19)) (36... Ra8 $1 $11 {and Black has nothing to worry.} 37. Qb7) 37. d6 $1 $18 {[%emt 0:01:28] d7 is the strong threat.} Ra8 {[%emt 0:01:29]} 38. Qb6 {[%emt 0:02:05]} (38. d7 Nxd7 39. Qxd7 Rd8 $11) 38... Rab8 $1 {[%emt 0:00:08]} 39. Qa7 {[%emt 0:00:17]} Ra8 $1 {[%emt 0:00:55] [#]} 40. Qb6 {[%emt 0:00:00]} (40. d7 Nxd7 41. Qxd7 Rd8 $11) (40. Qe7 $1 $18 Qxe7 41. dxe7) 40... Ne4 {[%emt 0:00:00][%mdl 8192]} (40... Rab8 $1 $11 41. Qa7) 41. Nd2 $1 {[%emt 0:09:12]} a3 $2 {[%emt 0:21:40]} (41... Be5 42. Rxc8+ (42. Nxe4 fxe4 43. Rxc8+ Rxc8 $18) 42... Rxc8 43. Nxe4 fxe4) 42. Nxe4 {[%emt 0:03:21]} fxe4 {[%emt 0:00:06]} 43. Bxe4 {[%emt 0:01:37]} Qe6 {[%emt 0:01:38] [#]} 44. f3 {[%emt 0:05:29] Repels Qg4+} (44. Bxa8 $2 Qg4+ 45. Bg2 Qxd1+ 46. Bf1 Qxc2 $19) 44... Rab8 {[%emt 0:04:23]} 45. Qa7 {[%emt 0:01:16][%csl Ge4,LRa3,LRh7][%cal Ra7h7]} Bg7 {[%emt 0:00:14]} 46. Rxc8+ $2 {[%emt 0:00:29]} (46. d7 Rd8 47. Qxb8 (47. Qxa3 Rxd7 48. Rxd7 Qxd7 $14) 47... Rxb8 48. d8=R+ (48. d8=Q+ Qe8 $18) 48... Qe8 49. Rxe8+ Rxe8 50. Rd7) 46... Rxc8 {[%emt 0:00:10] Black is weak on the light squares} 47. d7 {[%emt 0:01:04]} Rd8 {[%emt 0:00:08]} 48. Qxa3 {[%emt 0:00:24]} g4 {[%emt 0:02:41]} 49. Qa5 {[%emt 0:04:00]} Bf6 {[%emt 0:01:43] White must now prevent ...gxf3.} 50. Qf5 {[%emt 0:00:15]} Qxf5 {[%emt 0:00:53]} 51. Bxf5 {[%emt 0:00:04]} gxf3 {[%emt 0:00:05][%mdl 4096] Endgame. KRB-KRB} 52. Kf2 {[%emt 0:00:06]} Kg7 {[%emt 0:00:45]} 53. Kxf3 {[%emt 0:00:07]} h6 $2 {[%emt 0:00:14]} (53... Rf8 {might work better.} 54. e4 (54. Rg1+ Kf7 $18) 54... Bd8 55. Rg1+ Kf7 56. Bxh7 Rh8 57. Bg6+ (57. Bf5 Rxh2 58. Rg6 Rh3+ 59. Kg4 Rh1 $18) 57... Kf8) 54. Ke4 {[%emt 0:01:53]} Kf7 {[%emt 0:00:17]} 55. Rc1 {[%emt 0:01:18]} Ke7 {[%emt 0:03:02]} (55... Rf8 $142 56. Kd5 h5) 56. Kd5 {[%emt 0:00:49]} Bg5 {[%emt 0:00:59]} 57. Rc3 {[%emt 0:00:11]} Rf8 {[%emt 0:00:19]} 58. e4 {[%emt 0:00:24]} Rf6 {[%emt 0:01:20]} 59. Rc8 {[%emt 0:01:07]} Rd6+ {[%emt 0:00:38]} 60. Ke5 {[%emt 0:00:22] White threatens Re8+ and mate.} Bf6+ {[%emt 0:00:46]} 61. Kf4 {[%emt 0:00:04] And now Re8+ would win.} Bg5+ {[%emt 0:00:17]} 62. Kg4 {[%emt 0:00:06]} Kf7 {[%emt 0:00:10]} 63. Re8 {[%emt 0:03:06]} Be7 {[%emt 0:00:28]} 64. e5 {[%emt 0:00:53]} Rd4+ {[%emt 0:00:25]} 65. Kf3 {[%emt 0:00:33]} Rd5 {[%emt 0:00:24]} 66. Ke4 {[%emt 0:00:37]} Rd2 {[%emt 0:00:05]} 67. h3 {[%emt 0:00:48]} (67. Rh8 $142 Re2+ 68. Kd5 Rd2+ 69. Kc6) 67... Rd1 {[%emt 0:01:06]} 68. Bg4 {[%emt 0:00:47]} Rd2 {[%emt 0:00:28]} 69. Ke3 {[%emt 0:00:57]} Rd5 {[%emt 0:00:12]} 70. Kf4 {[%emt 0:00:07]} Rd3 {[%emt 0:02:05]} 71. Kf5 {[%emt 0:00:43]} Bg5 {[%emt 0:00:32]} 72. e6+ {[%emt 0:00:10][%cal Be5e6,Be6e7][%mdl 32]} Kg7 {[%emt 0:00:01]} 73. e7 {[%emt 0:00:26]} Rxd7 {[%emt 0:00:57] [#]} 74. Rg8+ $3 {[%emt 0:00:05][%mdl 512] Quite a comeback for White.   Weighted Error Value: White=0.24 (precise) /Black=0.36.  Loses game:     	---       	Black=2      Missed win:     	White=1     	Black=1      Mistake:       	White=3     	Black=3      Inaccurate:     	White=2     	Black=2      OK:         	White=21    	Black=14     Best:        	White=1     	Black=7      Strong:       	White=3     	Black=2} 1-0